fUST/lending_fUST_20250105
["ID","MTS","AMOUNT","RATE_DAILY","PERIOD"]
[347646718,1736009453216,-500.70306352,0.00019773,2]
[347646719,1736009453225,-391.7193737,0.00019799,2]
[347646720,1736009453235,-549.55465021,0.00019862,2]
[347646721,1736009453244,-2755.45557056,0.00019866,2]
[347646722,1736009453253,-2051.2066302,0.000199,2]
[347646723,1736009453264,-2051.20663018,0.000199,2]
[347646724,1736009453273,-2051.20663018,0.000199,2]
[347646725,1736009453283,-2051.20663018,0.000199,2]
[347646726,1736009453294,-11003.74897617,0.00019909,2]
[347646727,1736009453303,-2526.00698471,0.00019981,2]
[347646728,1736009453313,-151.0,0.00019999,2]
[347646729,1736009453324,-150.05,0.0002,3]
[347646730,1736009453335,-688.66953998,0.0002,30]
[347646731,1736009453345,-2000.0,0.0002,2]
[347646732,1736009453356,-160.0,0.0002,5]
[347646733,1736009453365,-500.0,0.0002,3]
[347646734,1736009453377,-500.0,0.0002,3]
[347646735,1736009453387,-500.0,0.0002,3]
[347646736,1736009453395,-500.0,0.0002,3]
[347646737,1736009453404,-500.0,0.0002,3]
[347646738,1736009453414,-500.0,0.0002,3]
[347646739,1736009453425,-492.85407382,0.0002,3]
[347646740,1736009453436,-502.30662381,0.0002,3]
[347646741,1736009453446,-500.0,0.0002,3]
[347646742,1736009453456,-627.54,0.0002,3]
[347646743,1736009453467,-500.0,0.0002,3]
[347646744,1736009453476,-500.0,0.0002,3]
[347646745,1736009453486,-500.0,0.0002,3]
[347646746,1736009453496,-500.0,0.0002,3]
[347646747,1736009453504,-500.0,0.0002,3]
[347646748,1736009453515,-500.0,0.0002,3]
[347646749,1736009453523,-538.06,0.0002,3]
[347646750,1736009453533,-500.0,0.0002,3]
[347646751,1736009453543,-500.0,0.0002,3]
[347646752,1736009453553,-500.0,0.0002,3]
[347646753,1736009453564,-500.0,0.0002,3]
[347646754,1736009453575,-202.46649293,0.0002,3]
[347646755,1736009453584,-500.0,0.0002,3]
[347646756,1736009453595,-500.0,0.0002,3]
[347646757,1736009453607,-600.65,0.0002,3]
[347646758,1736009453618,-500.0,0.0002,3]
[347646759,1736009453629,-500.0,0.0002,3]
[347646760,1736009453639,-500.0,0.0002,3]
[347646761,1736009453649,-500.0,0.0002,3]
[347646762,1736009453659,-507.92,0.0002,3]
[347646763,1736009453671,-500.0,0.0002,3]
[347646764,1736009453681,-500.0,0.0002,3]
[347646765,1736009453690,-500.0,0.0002,3]
[347646766,1736009453700,-500.0,0.0002,3]
[347646767,1736009453709,-301.43684276,0.0002,3]
[347646768,1736009453718,-500.0,0.0002,3]
[347646769,1736009453729,-500.0,0.0002,3]
[347646770,1736009453739,-500.0,0.0002,3]
[347646771,1736009453748,-500.0,0.0002,3]
[347646772,1736009453757,-500.0,0.0002,3]
[347646773,1736009453768,-500.0,0.0002,3]
[347646774,1736009453777,-422.11516219,0.0002,3]
[347646775,1736009453786,-500.0,0.0002,3]
[347646776,1736009453795,-500.0,0.0002,3]
[347646777,1736009453805,-607.38,0.0002,3]
[347646778,1736009453815,-241.66056029,0.0002,3]
[347646779,1736009453825,-500.0,0.0002,3]
[347646780,1736009453834,-500.0,0.0002,3]
[347646781,1736009453844,-513.16898394,0.0002,3]
[347646782,1736009453853,-500.0,0.0002,3]
[347646783,1736009453863,-500.0,0.0002,3]
[347646784,1736009453874,-707.71,0.0002,3]
[347646785,1736009453885,-500.0,0.0002,3]
[347646786,1736009453894,-500.0,0.0002,3]
[347646787,1736009453903,-500.0,0.0002,3]
[347646788,1736009453915,-1239.05,0.0002,3]
[347646789,1736009453925,-500.0,0.0002,3]
[347646790,1736009453935,-500.0,0.0002,3]
[347646791,1736009453944,-500.0,0.0002,3]
[347646792,1736009453953,-500.0,0.0002,3]
[347646793,1736009453962,-11886.45,0.0002,3]
[347646794,1736009453971,-500.0,0.0002,3]
[347646795,1736009454051,-547.48,0.0002,3]
[347646796,1736009454062,-500.0,0.0002,3]
[347646797,1736009454073,-500.0,0.0002,3]
[347646798,1736009454083,-507.16546455,0.0002,3]
[347646799,1736009454093,-500.0,0.0002,3]
[347646800,1736009454103,-680.51,0.0002,3]
[347646801,1736009454113,-500.0,0.0002,3]
[347646802,1736009454123,-500.0,0.0002,3]
[347646803,1736009454131,-598.36,0.0002,3]
[347646804,1736009454141,-1838.38,0.0002,3]
[347646805,1736009454151,-500.0,0.0002,3]
[347646806,1736009454160,-500.0,0.0002,3]
[347646807,1736009454169,-500.0,0.0002,3]
[347646808,1736009454178,-500.0,0.0002,3]
[347646809,1736009454189,-500.0,0.0002,3]
[347646810,1736009454198,-500.0,0.0002,3]
[347646811,1736009454207,-500.0,0.0002,3]
[347646812,1736009454216,-500.0,0.0002,3]
[347646813,1736009454225,-500.0,0.0002,3]
[347646814,1736009454235,-500.0,0.0002,3]
[347646815,1736009454245,-500.0,0.0002,3]
[347646816,1736009454254,-500.0,0.0002,3]
[347646817,1736009454265,-500.0,0.0002,3]
[347646818,1736009454274,-188.0,0.0002,2]
[347646819,1736009454283,-516.69,0.0002,3]
[347646820,1736009454294,-1419.34,0.0002,3]
[347646821,1736009454303,-500.0,0.0002,3]
[347646822,1736009454313,-500.0,0.0002,3]
[347646823,1736009454323,-500.0,0.0002,3]
[347646824,1736009454334,-500.0,0.0002,3]
[347646825,1736009454343,-500.0,0.0002,3]
[347646826,1736009454351,-500.0,0.0002,3]
[347646827,1736009454360,-500.0,0.0002,3]
[347646828,1736009454369,-312.3117641,0.0002,3]
[347646829,1736009454379,-502.21404212,0.0002,3]
[347646830,1736009454390,-1176.36,0.0002,3]
[347646831,1736009454400,-1058.64,0.0002,3]
[347646832,1736009454410,-500.0,0.0002,3]
[347646833,1736009454419,-1801.24,0.0002,3]
[347646834,1736009454428,-500.0,0.0002,3]
[347646835,1736009454438,-500.0,0.0002,3]
[347646836,1736009454447,-1143.49,0.0002,3]
[347646837,1736009454456,-890.49,0.0002,3]
[347646838,1736009454466,-500.0,0.0002,3]
[347646839,1736009454476,-500.0,0.0002,3]
[347646840,1736009454486,-500.0,0.0002,3]
[347646841,1736009454497,-500.0,0.0002,3]
[347646842,1736009454507,-643.83,0.0002,3]
[347646843,1736009454516,-500.0,0.0002,3]
[347646844,1736009454525,-500.0,0.0002,3]
[347646845,1736009454534,-1626.14,0.0002,3]
[347646846,1736009454545,-500.0,0.0002,3]
[347646847,1736009454554,-751.44,0.0002,3]
[347646848,1736009454563,-500.0,0.0002,3]
[347646849,1736009454573,-997.09,0.0002,3]
[347646850,1736009454584,-500.0,0.0002,3]
[347646851,1736009454603,-1181.89,0.0002,3]
[347646852,1736009454619,-500.0,0.0002,3]
[347646853,1736009454636,-500.0,0.0002,3]
[347646854,1736009454658,-500.0,0.0002,3]
[347646855,1736009454675,-500.0,0.0002,3]
[347646856,1736009454691,-500.0,0.0002,3]
[347646857,1736009454708,-547.4,0.0002,3]
[347646858,1736009454722,-500.0,0.0002,3]
[347646859,1736009454740,-500.0,0.0002,3]
[347646860,1736009454758,-502.32264664,0.0002,3]
[347646861,1736009454774,-500.0,0.0002,3]
[347646862,1736009454786,-544.84,0.0002,3]
[347646863,1736009454806,-500.0,0.0002,3]
[347646864,1736009454819,-500.0,0.0002,3]
[347646865,1736009454834,-998.72,0.0002,3]
[347646866,1736009454847,-500.0,0.0002,3]
[347646867,1736009454861,-500.0,0.0002,3]
[347646868,1736009454875,-1188.16,0.0002,3]
[347646869,1736009454890,-500.0,0.0002,3]
[347646870,1736009454904,-500.0,0.0002,3]
[347646871,1736009454919,-500.0,0.0002,3]
[347646872,1736009454934,-982.66,0.0002,3]
[347646873,1736009454948,-500.0,0.0002,3]
[347646874,1736009454963,-500.0,0.0002,3]
[347646875,1736009454977,-500.0,0.0002,3]
[347646876,1736009454991,-500.0,0.0002,3]
[347646877,1736009455006,-1242.19,0.0002,3]
[347646878,1736009455020,-976.94,0.0002,3]
[347646879,1736009455034,-585.4775556,0.0002,3]
[347646880,1736009455048,-500.0,0.0002,3]
[347646881,1736009455062,-500.0,0.0002,3]
[347646882,1736009455076,-500.0,0.0002,3]
[347646883,1736009455091,-500.0,0.0002,3]
[347646884,1736009455106,-500.0,0.0002,3]
[347646885,1736009455121,-500.0,0.0002,3]
[347646886,1736009455136,-500.0,0.0002,3]
[347646887,1736009455151,-500.0,0.0002,3]
[347646888,1736009455166,-500.0,0.0002,3]
[347646889,1736009455181,-500.0,0.0002,3]
[347646890,1736009455195,-500.0,0.0002,3]
[347646891,1736009455211,-500.0,0.0002,3]
[347646892,1736009455226,-1891.14,0.0002,3]
[347646893,1736009455240,-500.0,0.0002,3]
[347646894,1736009455255,-500.0,0.0002,3]
[347646895,1736009455271,-503.76828307,0.0002,3]
[347646896,1736009455284,-561.97,0.0002,3]
[347646897,1736009455298,-500.0,0.0002,3]
[347646898,1736009455312,-1028.88,0.0002,3]
[347646899,1736009455326,-720.72,0.0002,3]
[347646900,1736009455340,-500.0,0.0002,3]
[347646901,1736009455355,-500.0,0.0002,3]
[347646902,1736009455369,-335.23105855,0.0002,3]
[347646903,1736009455384,-500.0,0.0002,3]
[347646904,1736009455400,-1498.86,0.0002,3]
[347646905,1736009455511,-500.0,0.0002,3]
[347646906,1736009455522,-723.5,0.0002,3]
[347646907,1736009455532,-500.0,0.0002,3]
[347646908,1736009455541,-500.0,0.0002,3]
[347646909,1736009455550,-1135.62,0.0002,3]
[347646910,1736009455559,-580.16,0.0002,3]
[347646911,1736009455568,-500.0,0.0002,3]
[347646912,1736009455578,-500.0,0.0002,3]
[347646913,1736009455587,-500.0,0.0002,3]
[347646914,1736009455598,-500.0,0.0002,3]
[347646915,1736009455609,-1006.63,0.0002,3]
[347646916,1736009455618,-500.0,0.0002,3]
[347646917,1736009455627,-500.0,0.0002,3]
[347646918,1736009455636,-500.0,0.0002,3]
[347646919,1736009455646,-151.0,0.0002,5]
[347646920,1736009455655,-500.0,0.0002,3]
[347646921,1736009455665,-500.0,0.0002,3]
[347646922,1736009455675,-500.0,0.0002,3]
[347646923,1736009455685,-500.0,0.0002,3]
[347646924,1736009455694,-387.64935002,0.0002,3]
[347646925,1736009455703,-500.0,0.0002,3]
[347646926,1736009455712,-13229.23,0.0002,3]
[347646927,1736009455721,-500.0,0.0002,3]
[347646928,1736009455730,-1009.83,0.0002,3]
[347646929,1736009455739,-500.0,0.0002,3]
[347646930,1736009455748,-2153.32,0.0002,3]
[347646931,1736009455757,-500.0,0.0002,3]
[347646932,1736009455768,-1078.01,0.0002,3]
[347646933,1736009455777,-500.0,0.0002,3]
[347646934,1736009455787,-500.0,0.0002,3]
[347646935,1736009455796,-7167.99,0.0002,3]
[347646936,1736009455805,-500.0,0.0002,3]
[347646937,1736009455814,-500.0,0.0002,3]
[347646938,1736009455824,-591.96,0.0002,3]
[347646939,1736009455834,-500.0,0.0002,3]
[347646940,1736009455843,-500.0,0.0002,3]
[347646941,1736009455852,-556.09,0.0002,3]
[347646942,1736009455862,-2421.84,0.0002,2]
[347646943,1736009455871,-500.0,0.0002,3]
[347646944,1736009455880,-500.0,0.0002,3]
[347646945,1736009455889,-2242.32,0.0002,3]
[347646946,1736009455899,-500.0,0.0002,3]
[347646947,1736009455908,-572.04,0.0002,3]
[347646948,1736009455917,-500.0,0.0002,3]
[347646949,1736009455927,-580.52,0.0002,3]
[347646950,1736009455936,-500.0,0.0002,3]
[347646951,1736009455945,-500.0,0.0002,3]
[347646952,1736009455955,-936.1,0.0002,3]
[347646953,1736009455963,-2223.37,0.0002,3]
[347646954,1736009455972,-500.0,0.0002,3]
[347646955,1736009455982,-398.82317349,0.0002,3]
[347646956,1736009455991,-500.0,0.0002,3]
[347646957,1736009456000,-1087.77,0.0002,3]
[347646958,1736009456009,-500.0,0.0002,3]
[347646959,1736009456019,-500.0,0.0002,3]
[347646960,1736009456028,-500.0,0.0002,3]
[347646961,1736009456038,-519.75,0.0002,3]
[347646962,1736009456047,-500.0,0.0002,3]
[347646963,1736009456056,-3948.36,0.0002,3]
[347646964,1736009456066,-500.0,0.0002,3]
[347646965,1736009456075,-2657.97,0.0002,3]
[347646966,1736009456084,-500.0,0.0002,3]
[347646967,1736009456093,-500.0,0.0002,3]
[347646968,1736009456102,-649.96,0.0002,3]
[347646969,1736009456111,-500.0,0.0002,3]
[347646970,1736009456120,-2389.19,0.0002,3]
[347646971,1736009456129,-1425.25,0.0002,3]
[347646972,1736009456139,-500.0,0.0002,3]
[347646973,1736009456148,-500.0,0.0002,3]
[347646974,1736009456157,-500.0,0.0002,3]
[347646975,1736009456166,-1538.78,0.0002,3]
[347646976,1736009456176,-2026.65,0.0002,3]
[347646977,1736009456185,-500.0,0.0002,3]
[347646978,1736009456194,-500.0,0.0002,3]
[347646979,1736009456204,-500.0,0.0002,3]
[347646980,1736009456214,-500.0,0.0002,3]
[347646981,1736009456223,-1052.18,0.0002,3]
[347646982,1736009456233,-953.93,0.0002,3]
[347646983,1736009456242,-548.43,0.0002,3]
[347646984,1736009456252,-500.0,0.0002,3]
[347646985,1736009456263,-500.0,0.0002,3]
[347646986,1736009456272,-760.11,0.0002,3]
[347646987,1736009456281,-1383.69,0.0002,3]
[347646988,1736009456292,-500.0,0.0002,3]
[347646989,1736009456303,-619.21,0.0002,3]
[347646990,1736009456314,-500.0,0.0002,3]
[347646991,1736009456323,-2033.27,0.0002,3]
[347646992,1736009456334,-500.0,0.0002,3]
[347646993,1736009456346,-500.0,0.0002,3]
[347646994,1736009456357,-500.0,0.0002,3]
[347646995,1736009456366,-4269.31,0.0002,3]
[347646996,1736009456377,-500.0,0.0002,3]
[347646997,1736009456386,-1203.18,0.0002,3]
[347646998,1736009456397,-500.0,0.0002,3]
[347646999,1736009456406,-500.0,0.0002,3]
[347647000,1736009456416,-864.29,0.0002,3]
[347647001,1736009456425,-500.0,0.0002,3]
[347647002,1736009456435,-4275.07,0.0002,3]
[347647003,1736009456444,-500.0,0.0002,3]
[347647004,1736009456456,-500.0,0.0002,3]
[347647005,1736009456466,-579.26,0.0002,3]
[347647006,1736009456477,-500.0,0.0002,3]
[347647007,1736009456488,-4666.96,0.0002,3]
[347647008,1736009456499,-500.0,0.0002,3]
[347647009,1736009456511,-500.0,0.0002,3]
[347647010,1736009456520,-500.0,0.0002,3]
[347647011,1736009456530,-500.0,0.0002,3]
[347647012,1736009456540,-612.99,0.0002,3]
[347647013,1736009456549,-500.0,0.0002,3]
[347647014,1736009456559,-1161.84,0.0002,3]
[347647015,1736009456568,-500.0,0.0002,3]
[347647016,1736009456577,-500.0,0.0002,3]
[347647017,1736009456589,-500.0,0.0002,3]
[347647018,1736009456601,-500.0,0.0002,3]
[347647019,1736009456676,-500.0,0.0002,3]
[347647020,1736009456685,-500.0,0.0002,3]
[347647021,1736009456695,-2108.19,0.0002,3]
[347647022,1736009456704,-2317.05,0.0002,3]
[347647023,1736009456714,-500.0,0.0002,3]
[347647024,1736009456723,-500.0,0.0002,3]
[347647025,1736009456732,-509.56546007,0.0002,3]
[347647026,1736009456741,-500.0,0.0002,3]
[347647027,1736009456750,-500.0,0.0002,3]
[347647028,1736009456760,-2758.85,0.0002,3]
[347647029,1736009456769,-500.0,0.0002,3]
[347647030,1736009456778,-39489.19986021,0.0002,3]
[347647031,1736009457740,-3635.5491876,0.00018986,2]
[347647032,1736009457750,-500.0,0.00019178,2]
[347647033,1736009457760,-500.0,0.00019178,2]
[347647034,1736009457769,-500.0,0.00019452,3]
[347647035,1736009457779,-786.63,0.00019726,2]
[347647036,1736009457787,-500.0,0.00019726,3]
[347647037,1736009457797,-21896.46013979,0.0002,3]
[347647038,1736009457806,-1377.81,0.0002,3]
[347647039,1736009457816,-500.0,0.0002,3]
[347647040,1736009457825,-902.99,0.0002,3]
[347647041,1736009457834,-500.0,0.0002,3]
[347647042,1736009457843,-3014.05,0.0002,3]
[347647043,1736009457852,-1092.09,0.0002,3]
[347647044,1736009457862,-500.0,0.0002,3]
[347647045,1736009457871,-500.0,0.0002,3]
[347647046,1736009457881,-500.0,0.0002,3]
[347647047,1736009457890,-654.1,0.0002,3]
[347647048,1736009457899,-500.0,0.0002,3]
[347647049,1736009457908,-500.0,0.0002,3]
[347647050,1736009457918,-2692.91,0.0002,3]
[347647051,1736009457927,-457.96000079,0.0002,3]
[347647052,1736009457936,-618.87,0.0002,3]
[347647053,1736009457945,-1793.11,0.0002,3]
[347647054,1736009457954,-500.0,0.0002,3]
[347647055,1736009457963,-500.0,0.0002,3]
[347647056,1736009457972,-500.0,0.0002,3]
[347647057,1736009457982,-6825.69,0.0002,3]
[347647058,1736009457991,-500.0,0.0002,3]
[347647059,1736009458000,-500.0,0.0002,3]
[347647060,1736009458010,-1213.24,0.0002,3]
[347647061,1736009458019,-500.0,0.0002,3]
[347647062,1736009458028,-1656.97,0.0002,3]
[347647063,1736009458039,-1665.67,0.0002,3]
[347647064,1736009458048,-578.96564318,0.0002,3]
[347647065,1736009458057,-500.0,0.0002,3]
[347647066,1736009458067,-203.42242453,0.0002,3]
[347647067,1736009458076,-500.0,0.0002,3]
[347647068,1736009458085,-500.0,0.0002,3]
[347647069,1736009458095,-500.0,0.0002,3]
[347647070,1736009458104,-612.82,0.0002,3]
[347647071,1736009458114,-500.0,0.0002,3]
[347647072,1736009458124,-621.48,0.0002,3]
[347647073,1736009458133,-2206.02,0.0002,3]
[347647074,1736009458143,-518.44,0.0002,3]
[347647075,1736009458152,-786.63,0.0002,2]
[347647076,1736009458161,-500.0,0.0002,3]
[347647077,1736009458170,-2755.45557056,0.00020003,2]
[347647078,1736009458180,-1000.0,0.00020021,2]
[347647079,1736009458189,-502.65049619,0.00020021,2]
[347647080,1736009458198,-1001.31071868,0.00020021,2]
[347647081,1736009458208,-500.0,0.00020021,2]
[347647082,1736009458217,-1000.0,0.00020021,2]
[347647083,1736009458226,-10319.76690089,0.0002007,2]
[347647084,1736009458235,-151.0,0.000201,3]
[347647085,1736009458244,-2755.45557056,0.00020141,2]
[347647086,1736009458253,-2000.0,0.000202,2]
[347647087,1736009458264,-151.0,0.000202,4]
[347647088,1736009458273,-500.0,0.00020273,3]
[347647089,1736009458378,-500.0,0.00020273,3]
[347647090,1736009458389,-500.0,0.00020273,3]
[347647091,1736009458399,-500.0,0.00020273,3]
[347647092,1736009458408,-627.54,0.00020273,3]
[347647093,1736009458418,-500.0,0.00020273,3]
[347647094,1736009458427,-500.0,0.00020273,3]
[347647095,1736009458437,-500.0,0.00020273,3]
[347647096,1736009458447,-500.0,0.00020273,3]
[347647097,1736009458457,-500.0,0.00020273,3]
[347647098,1736009458466,-500.0,0.00020273,3]
[347647099,1736009458475,-538.06,0.00020273,3]
[347647100,1736009458486,-500.0,0.00020273,3]
[347647101,1736009458497,-500.0,0.00020273,3]
[347647102,1736009458507,-500.0,0.00020273,3]
[347647103,1736009458517,-500.0,0.00020273,3]
[347647104,1736009458526,-500.0,0.00020273,3]
[347647105,1736009458535,-500.0,0.00020273,3]
[347647106,1736009458545,-600.65,0.00020273,3]
[347647107,1736009458554,-500.0,0.00020273,3]
[347647108,1736009458564,-500.0,0.00020273,3]
[347647109,1736009458573,-514.45395222,0.00020273,3]
[347647110,1736009458583,-500.0,0.00020273,3]
[347647111,1736009458594,-507.92,0.00020273,3]
[347647112,1736009458607,-500.0,0.00020273,3]
[347647113,1736009458617,-500.0,0.00020273,3]
[347647114,1736009458626,-500.0,0.00020273,3]
[347647115,1736009458636,-500.0,0.00020273,3]
[347647116,1736009458647,-508.51076782,0.00020273,3]
[347647117,1736009458656,-500.0,0.00020273,3]
[347647118,1736009458665,-500.0,0.00020273,3]
[347647119,1736009458676,-500.0,0.00020273,3]
[347647120,1736009458686,-525.81625921,0.00020273,3]
[347647121,1736009458697,-607.38,0.00020273,3]
[347647122,1736009458706,-500.0,0.00020273,3]
[347647123,1736009458716,-500.0,0.00020273,3]
[347647124,1736009458725,-500.0,0.00020273,3]
[347647125,1736009458735,-500.0,0.00020273,3]
[347647126,1736009458744,-707.71,0.00020273,3]
[347647127,1736009458753,-500.0,0.00020273,3]
[347647128,1736009458762,-500.0,0.00020273,3]
[347647129,1736009458771,-500.0,0.00020273,3]
[347647130,1736009458780,-1239.05,0.00020273,3]
[347647131,1736009458790,-500.0,0.00020273,3]
[347647132,1736009458799,-500.0,0.00020273,3]
[347647133,1736009458808,-500.0,0.00020273,3]
[347647134,1736009458818,-500.0,0.00020273,3]
[347647135,1736009458827,-11886.45,0.00020273,3]
[347647136,1736009458836,-547.48,0.00020273,3]
[347647137,1736009458846,-500.0,0.00020273,3]
[347647138,1736009458855,-510.54838834,0.00020273,3]
[347647139,1736009458865,-680.51,0.00020273,3]
[347647140,1736009458874,-500.0,0.00020273,3]
[347647141,1736009458883,-500.0,0.00020273,3]
[347647142,1736009458892,-598.36,0.00020273,3]
[347647143,1736009458901,-1838.38,0.00020273,3]
[347647144,1736009458910,-500.0,0.00020273,3]
[347647145,1736009458920,-500.0,0.00020273,3]
[347647146,1736009458929,-500.0,0.00020273,3]
[347647147,1736009458939,-500.0,0.00020273,3]
[347647148,1736009458948,-500.0,0.00020273,3]
[347647149,1736009458958,-500.0,0.00020273,3]
[347647150,1736009458967,-500.0,0.00020273,3]
[347647151,1736009458977,-500.0,0.00020273,3]
[347647152,1736009458986,-500.0,0.00020273,3]
[347647153,1736009458995,-500.0,0.00020273,3]
[347647154,1736009459005,-227.05686077,0.00020273,3]
[347647155,1736009459014,-500.0,0.00020273,3]
[347647156,1736009459023,-500.0,0.00020273,3]
[347647157,1736009459033,-516.69,0.00020273,3]
[347647158,1736009459042,-1419.34,0.00020273,3]
[347647159,1736009459051,-500.0,0.00020273,3]
[347647160,1736009459061,-500.0,0.00020273,3]
[347647161,1736009459071,-500.0,0.00020273,3]
[347647162,1736009459080,-500.0,0.00020273,3]
[347647163,1736009459090,-500.0,0.00020273,3]
[347647164,1736009459099,-492.87484442,0.00020273,3]
[347647165,1736009459108,-500.0,0.00020273,3]
[347647166,1736009459117,-1176.36,0.00020273,3]
[347647167,1736009459127,-1058.64,0.00020273,3]
[347647168,1736009459136,-500.0,0.00020273,3]
[347647169,1736009459145,-1801.24,0.00020273,3]
[347647170,1736009459154,-500.0,0.00020273,3]
[347647171,1736009459163,-500.0,0.00020273,3]
[347647172,1736009459173,-1143.49,0.00020273,3]
[347647173,1736009459183,-890.49,0.00020273,3]
[347647174,1736009459192,-500.0,0.00020273,3]
[347647175,1736009459201,-500.0,0.00020273,3]
[347647176,1736009459211,-500.0,0.00020273,3]
[347647177,1736009459220,-500.0,0.00020273,3]
[347647178,1736009459229,-500.0,0.00020273,3]
[347647179,1736009459238,-643.83,0.00020273,3]
[347647180,1736009459251,-500.0,0.00020273,3]
[347647181,1736009459261,-1626.14,0.00020273,3]
[347647182,1736009459272,-500.0,0.00020273,3]
[347647183,1736009459282,-751.44,0.00020273,3]
[347647184,1736009459293,-500.0,0.00020273,3]
[347647185,1736009459303,-997.09,0.00020273,3]
[347647186,1736009459312,-500.0,0.00020273,3]
[347647187,1736009459322,-1181.89,0.00020273,3]
[347647188,1736009459331,-513.366997,0.00020273,3]
[347647189,1736009459340,-500.0,0.00020273,3]
[347647190,1736009459349,-506.81978557,0.00020273,3]
[347647191,1736009459358,-500.0,0.00020273,3]
[347647192,1736009459367,-500.0,0.00020273,3]
[347647193,1736009459377,-547.4,0.00020273,3]
[347647194,1736009459388,-500.0,0.00020273,3]
[347647195,1736009459397,-500.0,0.00020273,3]
[347647196,1736009459407,-500.0,0.00020273,3]
[347647197,1736009459417,-500.0,0.00020273,3]
[347647198,1736009459426,-544.84,0.00020273,3]
[347647199,1736009459435,-500.0,0.00020273,3]
[347647200,1736009459444,-998.72,0.00020273,3]
[347647201,1736009459454,-500.0,0.00020273,3]
[347647202,1736009459463,-500.0,0.00020273,3]
[347647203,1736009459473,-1188.16,0.00020273,3]
[347647204,1736009459483,-500.0,0.00020273,3]
[347647205,1736009459492,-500.0,0.00020273,3]
[347647206,1736009459502,-500.0,0.00020273,3]
[347647207,1736009459514,-982.66,0.00020273,3]
[347647208,1736009459523,-500.0,0.00020273,3]
[347647209,1736009459532,-505.11118632,0.00020273,3]
[347647210,1736009459542,-500.0,0.00020273,3]
[347647211,1736009459553,-1242.19,0.00020273,3]
[347647212,1736009459562,-976.94,0.00020273,3]
[347647213,1736009459571,-500.0,0.00020273,3]
[347647214,1736009459581,-500.0,0.00020273,3]
[347647215,1736009459591,-506.9876027,0.00020273,3]
[347647216,1736009459606,-500.0,0.00020273,3]
[347647217,1736009459615,-500.0,0.00020273,3]